fUSD/lending_fUSD_20250217
["ID","MTS","AMOUNT","RATE_DAILY","PERIOD"]
[353363746,1739797845573,-864.25,0.00013698,2]
[353363747,1739797845582,-1172.72,0.00013698,2]
[353363748,1739797845591,-845.45,0.00013698,2]
[353363749,1739797845601,-500.0,0.00013698,2]
[353363750,1739797845610,-677.75,0.00013698,2]
[353363751,1739797845619,-500.0,0.00013698,2]
[353363752,1739797845629,-500.0,0.00013698,2]
[353363753,1739797845638,-500.0,0.00013698,2]
[353363754,1739797845649,-500.0,0.00013698,2]
[353363755,1739797845660,-1329.94,0.00013698,2]
[353363756,1739797845669,-443.99741173,0.00013698,2]
[353363757,1739797845680,-636.21,0.00013698,2]
[353363758,1739797845693,-500.0,0.00013698,2]
[353363759,1739797845702,-500.0,0.00013698,2]
[353363760,1739797845711,-500.0,0.00013698,2]
[353363761,1739797845720,-500.0,0.00013698,2]
[353363762,1739797845730,-512.61,0.00013698,2]
[353363763,1739797845739,-500.0,0.00013698,2]
[353363764,1739797845748,-551.18,0.00013698,2]
[353363765,1739797845758,-500.0,0.00013698,2]
[353363766,1739797845768,-1007.71,0.00013698,2]
[353363767,1739797845777,-500.0,0.00013698,2]
[353363768,1739797845787,-648.06,0.00013698,2]
[353363769,1739797845796,-944.79,0.00013698,2]
[353363770,1739797845806,-500.0,0.00013698,2]
[353363771,1739797845815,-500.0,0.00013698,2]
[353363772,1739797845825,-500.0,0.00013698,2]
[353363773,1739797845834,-773.88,0.00013698,2]
[353363774,1739797845844,-500.0,0.00013698,2]
[353363775,1739797845855,-586.96,0.00013698,2]
[353363776,1739797845864,-500.0,0.00013698,2]
[353363777,1739797845874,-707.2,0.00013698,2]
[353363778,1739797845884,-500.0,0.00013698,2]
[353363779,1739797845894,-510.47,0.00013698,2]
[353363780,1739797845903,-500.0,0.00013698,2]
[353363781,1739797845912,-1307.75,0.00013698,2]
[353363782,1739797845922,-500.0,0.00013698,2]
[353363783,1739797845932,-500.0,0.00013698,2]
[353363784,1739797845942,-1414.08,0.00013698,2]
[353363785,1739797845952,-388.52231726,0.00013698,2]
[353363786,1739797845961,-995.21,0.00013698,2]
[353363787,1739797845971,-500.0,0.00013698,2]
[353363788,1739797845980,-500.0,0.00013698,2]
[353363789,1739797845989,-612.66601784,0.00013698,2]
[353363790,1739797845999,-1317.14,0.00013698,2]
[353363791,1739797846008,-1289.5,0.00013698,2]
[353363792,1739797846017,-500.0,0.00013698,2]
[353363793,1739797846027,-597.58,0.00013698,2]
[353363794,1739797846036,-511.30562613,0.00013698,2]
[353363795,1739797846046,-500.0,0.00013698,2]
[353363796,1739797846055,-500.0,0.00013698,2]
[353363797,1739797846064,-500.0,0.00013698,2]
[353363798,1739797846074,-500.0,0.00013698,2]
[353363799,1739797846083,-1098.69,0.00013698,2]
[353363800,1739797846092,-500.0,0.00013698,2]
[353363801,1739797846102,-1126.07,0.00013698,2]
[353363802,1739797846111,-209.07860576,0.00013698,2]
[353363803,1739797846120,-511.35,0.00013698,2]
[353363804,1739797846129,-511.35,0.00013698,2]
[353363805,1739797846139,-500.0,0.00013698,2]
[353363806,1739797846148,-511.35,0.00013698,2]
[353363807,1739797846159,-500.0,0.00013698,2]
[353363808,1739797846169,-500.0,0.00013698,2]
[353363809,1739797846179,-500.0,0.00013698,2]
[353363810,1739797846188,-1565.28,0.00013698,2]
[353363811,1739797846198,-799.61,0.00013698,2]
[353363812,1739797846209,-511.43110751,0.00013698,2]
[353363813,1739797846220,-500.0,0.00013698,2]
[353363814,1739797846229,-667.85,0.00013698,2]
[353363815,1739797846238,-500.0,0.00013698,2]
[353363816,1739797846248,-500.0,0.00013698,2]
[353363817,1739797846260,-500.0,0.00013698,2]
[353363818,1739797846270,-500.0,0.00013698,2]
[353363819,1739797846280,-500.0,0.00013698,2]
[353363820,1739797846291,-500.0,0.00013698,2]
[353363821,1739797846300,-500.0,0.00013698,2]
[353363822,1739797846310,-507.3543246,0.00013698,2]
[353363823,1739797846320,-960.07,0.00013698,2]
[353363824,1739797846330,-500.0,0.00013698,2]
[353363825,1739797846340,-500.0,0.00013698,2]
[353363826,1739797846350,-500.0,0.00013698,2]
[353363827,1739797846360,-500.0,0.00013698,2]
[353363828,1739797846369,-500.0,0.00013698,2]
[353363829,1739797846378,-500.0,0.00013698,2]
[353363830,1739797846387,-500.0,0.00013698,2]
[353363831,1739797846396,-500.0,0.00013698,2]
[353363832,1739797846406,-500.0,0.00013698,2]
[353363833,1739797846415,-500.0,0.00013698,2]
[353363834,1739797846426,-500.0,0.00013698,2]
[353363835,1739797846439,-500.0,0.00013698,2]
[353363836,1739797846448,-500.0,0.00013698,2]
[353363837,1739797846459,-500.0,0.00013698,2]
[353363838,1739797846469,-571.34,0.00013698,2]
[353363839,1739797846480,-500.0,0.00013698,2]
[353363840,1739797846490,-500.0,0.00013698,2]
[353363841,1739797846501,-693.46,0.00013698,2]
[353363842,1739797846511,-500.0,0.00013698,2]
[353363843,1739797846523,-915.93,0.00013698,2]
[353363844,1739797846535,-500.0,0.00013698,2]
[353363845,1739797846545,-500.0,0.00013698,2]
[353363846,1739797846555,-500.0,0.00013698,2]
[353363847,1739797846564,-500.0,0.00013698,2]
[353363848,1739797846573,-500.0,0.00013698,2]
[353363849,1739797846582,-500.0,0.00013698,2]
[353363850,1739797846591,-500.0,0.00013698,2]
[353363851,1739797846601,-500.0,0.00013698,2]
[353363852,1739797846612,-1086.88,0.00013698,2]
[353363853,1739797846622,-500.0,0.00013698,2]
[353363854,1739797846631,-500.0,0.00013698,2]
[353363855,1739797846640,-689.3,0.00013698,2]
[353363856,1739797846650,-500.0,0.00013698,2]
[353363857,1739797846659,-500.0,0.00013698,2]
[353363858,1739797846670,-500.0,0.00013698,2]
[353363859,1739797846685,-500.0,0.00013698,2]
[353363860,1739797846695,-500.0,0.00013698,2]
[353363861,1739797846705,-500.0,0.00013698,2]
[353363862,1739797846714,-500.0,0.00013698,2]
[353363863,1739797846728,-500.0,0.00013698,2]
[353363864,1739797846737,-913.3,0.00013698,2]
[353363865,1739797846747,-729.47,0.00013698,2]
[353363866,1739797846758,-500.0,0.00013698,2]
[353363867,1739797846767,-670.29,0.00013698,2]
[353363868,1739797846777,-500.0,0.00013698,2]
[353363869,1739797846786,-500.0,0.00013698,2]
[353363870,1739797846796,-500.0,0.00013698,2]
[353363871,1739797846806,-500.0,0.00013698,2]
[353363872,1739797846816,-500.0,0.00013698,2]
[353363873,1739797846826,-401.60168627,0.00013698,2]
[353363874,1739797846836,-500.0,0.00013698,2]
[353363875,1739797846846,-500.0,0.00013698,2]
[353363876,1739797846857,-500.43356933,0.00013698,2]
[353363877,1739797846867,-500.0,0.00013698,2]
[353363878,1739797846876,-501.48292972,0.00013698,2]
[353363879,1739797846886,-500.0,0.00013698,2]
[353363880,1739797846896,-500.0,0.00013698,2]
[353363881,1739797846905,-501.32080227,0.00013698,2]
[353363882,1739797846915,-821.82,0.00013698,2]
[353363883,1739797846925,-500.0,0.00013698,2]
[353363884,1739797846935,-500.0,0.00013698,2]
[353363885,1739797846944,-500.0,0.00013698,2]
[353363886,1739797846954,-739.41,0.00013698,2]
[353363887,1739797846964,-999.53,0.00013698,2]
[353363888,1739797846974,-501.68654817,0.00013698,2]
[353363889,1739797846983,-500.0,0.00013698,2]
[353363890,1739797846993,-1642.88,0.00013698,2]
[353363891,1739797847003,-500.0,0.00013698,2]
[353363892,1739797847013,-868.83,0.00013698,2]
[353363893,1739797847022,-500.0,0.00013698,2]
[353363894,1739797847031,-1404.31,0.00013698,2]
[353363895,1739797847041,-500.0,0.00013698,2]
[353363896,1739797847051,-1599.57,0.00013698,2]
[353363897,1739797847061,-500.9204697,0.00013698,2]
[353363898,1739797847071,-501.93235363,0.00013698,2]
[353363899,1739797847081,-500.0,0.00013698,2]
[353363900,1739797847091,-988.26,0.00013698,2]
[353363901,1739797847100,-577.68,0.00013698,2]
[353363902,1739797847109,-500.0,0.00013698,2]
[353363903,1739797847119,-513.4,0.00013698,2]
[353363904,1739797847129,-561.41,0.00013698,2]
[353363905,1739797847139,-854.84,0.00013698,2]
[353363906,1739797847149,-500.0,0.00013698,2]
[353363907,1739797847158,-500.0,0.00013698,2]
[353363908,1739797847167,-500.0,0.00013698,2]
[353363909,1739797847177,-1376.96,0.00013698,2]
[353363910,1739797847186,-592.99,0.00013698,2]
[353363911,1739797847195,-852.7,0.00013698,2]
[353363912,1739797847204,-500.0,0.00013698,2]
[353363913,1739797847213,-611.0,0.00013698,2]
[353363914,1739797847223,-500.0,0.00013698,2]
[353363915,1739797847233,-500.0,0.00013698,2]
[353363916,1739797847242,-500.0,0.00013698,2]
[353363917,1739797847252,-500.0,0.00013698,2]
[353363918,1739797847261,-500.0,0.00013698,2]
[353363919,1739797847271,-500.0,0.00013698,2]
[353363920,1739797847282,-500.0,0.00013698,2]
[353363921,1739797847291,-500.0,0.00013698,2]
[353363922,1739797847301,-157.00997213,0.00013698,2]
[353363923,1739797847310,-160.4931881,0.00013698,2]
[353363924,1739797847320,-1580.3,0.00013698,2]
[353363925,1739797847330,-500.0,0.00013698,2]
[353363926,1739797847339,-1380.69,0.00013698,2]
[353363927,1739797847349,-500.0,0.00013698,2]
[353363928,1739797847359,-1562.62,0.00013698,2]
[353363929,1739797847369,-500.0,0.00013698,2]
[353363930,1739797847378,-500.0,0.00013698,2]
[353363931,1739797847389,-500.0,0.00013698,2]
[353363932,1739797847400,-500.0,0.00013698,2]
[353363933,1739797847409,-500.0,0.00013698,2]
[353363934,1739797847418,-1567.99,0.00013698,2]
[353363935,1739797847427,-500.0,0.00013698,2]
[353363936,1739797847437,-500.0,0.00013698,2]
[353363937,1739797847446,-518.04,0.00013698,2]
[353363938,1739797847457,-844.64,0.00013698,2]
[353363939,1739797847467,-500.0,0.00013698,2]
[353363940,1739797847476,-500.0,0.00013698,2]
[353363941,1739797847485,-1192.12,0.00013698,2]
[353363942,1739797847494,-500.0,0.00013698,2]
[353363943,1739797847503,-509.84415695,0.00013698,2]
[353363944,1739797847512,-500.0,0.00013698,2]
[353363945,1739797847521,-500.0,0.00013698,2]
[353363946,1739797847530,-500.0,0.00013698,2]
[353363947,1739797847540,-616.63,0.00013698,2]
[353363948,1739797847549,-500.0,0.00013698,2]
[353363949,1739797847558,-500.0,0.00013698,2]
[353363950,1739797847567,-997.55,0.00013698,2]
[353363951,1739797847576,-1471.53,0.00013698,2]
[353363952,1739797847585,-653.46,0.00013698,2]
[353363953,1739797847594,-500.0,0.00013698,2]
[353363954,1739797847604,-500.0,0.00013698,2]
[353363955,1739797847613,-500.0,0.00013698,2]
[353363956,1739797847623,-500.0,0.00013698,2]
[353363957,1739797847633,-500.0,0.00013698,2]
[353363958,1739797847642,-842.09,0.00013698,2]
[353363959,1739797847651,-500.0,0.00013698,2]
[353363960,1739797847660,-500.0,0.00013698,2]
[353363961,1739797847669,-500.0,0.00013698,2]
[353363962,1739797847683,-681.88,0.00013698,2]
[353363963,1739797847692,-500.0,0.00013698,2]
[353363964,1739797847701,-500.0,0.00013698,2]
[353363965,1739797847710,-21.77501641,0.00013698,2]
[353363966,1739797848434,-150.0,0.000132,2]
[353363967,1739797848444,-478.22498359,0.00013698,2]
[353363968,1739797848454,-913.23,0.00013698,2]
[353363969,1739797848464,-407.58832854,0.00013698,2]
[353363970,1739797848476,-1023.22167146,0.00013698,2]
[353363971,1739797848486,-913.23,0.00013698,2]
[353363972,1739797848496,-500.0,0.00013698,2]
[353363973,1739797848506,-981.85,0.00013698,2]
[353363974,1739797848516,-500.0,0.00013698,2]
[353363975,1739797848526,-500.0,0.00013698,2]
[353363976,1739797848537,-500.0,0.00013698,2]
[353363977,1739797848547,-1474.05,0.00013698,2]
[353363978,1739797848558,-500.0,0.00013698,2]
[353363979,1739797848567,-500.0,0.00013698,2]
[353363980,1739797848577,-500.0,0.00013698,2]
[353363981,1739797848588,-500.0,0.00013698,2]
[353363982,1739797848598,-500.0,0.00013698,2]
[353363983,1739797848608,-1878.84,0.00013698,2]
[353363984,1739797848619,-500.0,0.00013698,2]
[353363985,1739797848630,-500.0,0.00013698,2]
[353363986,1739797848640,-500.0,0.00013698,2]
[353363987,1739797848651,-500.0,0.00013698,2]
[353363988,1739797848662,-500.0,0.00013698,2]
[353363989,1739797848673,-500.0,0.00013698,2]
[353363990,1739797848688,-500.0,0.00013698,2]
[353363991,1739797848698,-570.77,0.00013698,2]
[353363992,1739797848710,-504.50407588,0.00013698,2]
[353363993,1739797848722,-1136.31,0.00013698,2]
[353363994,1739797848732,-500.0,0.00013698,2]
[353363995,1739797848743,-1940.87,0.00013698,2]
[353363996,1739797848754,-1516.65,0.00013698,2]
[353363997,1739797848766,-500.0,0.00013698,2]
[353363998,1739797848779,-679.53,0.00013698,2]
[353363999,1739797848789,-500.0,0.00013698,2]
[353364000,1739797848799,-1213.0,0.00013698,2]
[353364001,1739797848810,-565.51,0.00013698,2]
[353364002,1739797848821,-153.65022207,0.00013698,2]
[353364003,1739797848831,-500.0,0.00013698,2]
[353364004,1739797848840,-981.9,0.00013698,2]
[353364005,1739797848850,-1152.11,0.00013698,2]
[353364006,1739797848860,-500.0,0.00013698,2]
[353364007,1739797848870,-500.0,0.00013698,2]
[353364008,1739797848881,-1913.41,0.00013698,2]
[353364009,1739797848892,-558.67,0.00013698,2]
[353364010,1739797848902,-689.72,0.00013698,2]
[353364011,1739797848914,-504.42717946,0.00013698,2]
[353364012,1739797848924,-500.0,0.00013698,2]
[353364013,1739797848934,-2380.11,0.00013698,2]
[353364014,1739797848944,-500.0,0.00013698,2]
[353364015,1739797848955,-3199.28,0.00013698,2]
[353364016,1739797848965,-2189.93,0.00013698,2]
[353364017,1739797848976,-500.0,0.00013698,2]
[353364018,1739797848986,-848.42,0.00013698,2]
[353364019,1739797848997,-500.0,0.00013698,2]
[353364020,1739797849008,-500.0,0.00013698,2]
[353364021,1739797849019,-500.0,0.00013698,2]
[353364022,1739797849029,-500.0,0.00013698,2]
[353364023,1739797849039,-500.0,0.00013698,2]
[353364024,1739797849050,-500.0,0.00013698,2]
[353364025,1739797849062,-779.41,0.00013698,2]
[353364026,1739797849072,-500.0,0.00013698,2]
[353364027,1739797849084,-500.0,0.00013698,2]
[353364028,1739797849094,-1128.78,0.00013698,2]
[353364029,1739797849106,-682.13,0.00013698,2]
[353364030,1739797849117,-500.0,0.00013698,2]
[353364031,1739797849129,-2210.38,0.00013698,2]
[353364032,1739797849139,-343.62173597,0.00013698,2]
[353364033,1739797849150,-568.67,0.00013698,2]
[353364034,1739797849161,-2498.78,0.00013698,2]
[353364035,1739797849172,-628.98,0.00013698,2]
[353364036,1739797849182,-1690.19,0.00013698,2]
[353364037,1739797849192,-500.0,0.00013698,2]
[353364038,1739797849202,-500.0,0.00013698,2]
[353364039,1739797849214,-500.0,0.00013698,2]
[353364040,1739797849225,-500.0,0.00013698,2]
[353364041,1739797849235,-802.81,0.00013698,2]
[353364042,1739797849245,-2319.79,0.00013698,2]
[353364043,1739797849255,-672.96,0.00013698,2]
[353364044,1739797849265,-500.0,0.00013698,2]
[353364045,1739797849277,-719.31,0.00013698,2]
[353364046,1739797849287,-500.0,0.00013698,2]
[353364047,1739797849298,-1679.04,0.00013698,2]
[353364048,1739797849309,-500.0,0.00013698,2]
[353364049,1739797849319,-595.88086342,0.00013698,2]
[353364050,1739797849330,-1248.56,0.00013698,2]
[353364051,1739797849341,-500.0,0.00013698,2]
[353364052,1739797849351,-500.0,0.00013698,2]
[353364053,1739797849361,-816.74949861,0.00013698,2]
[353364054,1739797849375,-314.01050139,0.00013698,2]
[353364055,1739797849385,-1130.76,0.00013698,2]
[353364056,1739797849396,-485.33942559,0.00013698,2]
[353364172,1739799031654,-10000.0,8.836e-05,2]
[353364173,1739799031664,-11530.45867572,0.0001,2]
[353364174,1739799031718,-280.5,0.0001,2]
[353364175,1739799031730,-9812.7864,0.0001,2]
[353364176,1739799031838,-289.824,0.0001,2]
[353364177,1739799031850,-280.35137859,0.0001,2]
[353364178,1739799031903,-1500.00005,0.0001,2]
[353364204,1739799037837,-623.0436,0.0001,2]
[353364205,1739799037855,-518.9007186,0.0001,2]
[353364206,1739799037878,-4312.73493,0.0001,2]
[353364270,1739799039938,-27927.67158052,0.0001,2]
[353364271,1739799039948,-550.0,0.0001,2]
[353364272,1739799039958,-454.44,0.00010137,2]
[353364273,1739799039967,-825.53,0.00010757,2]
[353364274,1739799039976,-505.19,0.00011154,2]
[353364275,1739799039984,-499.8,0.00011154,2]
[353364276,1739799039993,-502.06,0.00011154,2]
[353364277,1739799040002,-505.71,0.00011154,2]
[353364278,1739799040011,-506.15,0.00011154,2]
[353364279,1739799040020,-496.72,0.00011154,2]
[353364280,1739799040029,-503.13,0.00011154,2]
[353364281,1739799040038,-508.06,0.00011154,2]
[353364282,1739799040048,-506.48,0.00011154,2]
[353364283,1739799040057,-494.55,0.00011154,2]
[353364284,1739799040068,-491.08,0.00011154,2]
[353364285,1739799040077,-493.9,0.00011154,2]
[353364286,1739799040086,-497.41,0.00011154,2]
[353364287,1739799040096,-500.13,0.00011154,2]
[353364288,1739799040105,-496.0,0.00011154,2]
[353364289,1739799040115,-505.23,0.00011154,2]
[353364290,1739799040124,-494.02,0.00011154,2]
[353364291,1739799040133,-493.09,0.00011154,2]
[353364292,1739799040144,-491.93,0.00011154,2]
[353364293,1739799040153,-509.03,0.00011154,2]
[353364294,1739799040162,-494.62,0.00011154,2]
[353364295,1739799040171,-491.5,0.00011154,2]
[353364296,1739799040180,-490.55,0.00011154,2]
[353364297,1739799040189,-497.25,0.00011154,2]
[353364298,1739799040198,-499.96,0.00011154,2]
[353364299,1739799040207,-499.58,0.00011154,2]
[353364300,1739799040217,-492.17,0.00011154,2]
[353364301,1739799040226,-493.28,0.00011154,2]
[353364302,1739799040235,-502.68,0.00011154,2]
[353364303,1739799040245,-491.51,0.00011154,2]
[353364304,1739799040255,-498.16,0.00011154,2]
[353364305,1739799040264,-499.58,0.00011154,2]
[353364306,1739799040273,-493.52,0.00011154,2]
[353364307,1739799040283,-505.42,0.00011154,2]
[353364308,1739799040292,-491.32,0.00011154,2]
[353364309,1739799040301,-509.51,0.00011154,2]
[353364310,1739799040310,-509.31,0.00011154,2]
[353364311,1739799040319,-490.46,0.00011154,2]
[353364312,1739799040328,-500.0,0.00011154,2]
[353364313,1739799040337,-600.0,0.00011154,2]
[353364314,1739799040347,-600.0,0.00011154,2]
[353364315,1739799040356,-600.0,0.00012,2]
[353364316,1739799040365,-600.0,0.00012524,2]
[353364317,1739799040374,-600.0,0.00012524,2]
[353364318,1739799040383,-203.62113033,0.00012539,2]
[353364319,1739799040392,-296.28,0.0001258,2]
[353364320,1739799040401,-250.0,0.0001258,2]
[353364321,1739799040411,-156.94,0.00012688,2]
[353364322,1739799040421,-1000.0,0.00012688,2]
[353364323,1739799040430,-150.0,0.00012978,2]
[353364324,1739799040439,-878.22,0.00012978,2]
[353364325,1739799040449,-825.53,0.00013021,2]
[353364326,1739799040458,-503.99,0.00013302,2]
[353364327,1739799040467,-10698.40120343,0.0001337,2]
[353364328,1739799040476,-1000.0,0.000134,2]
[353364329,1739799040486,-491.22,0.00013498,2]
[353364330,1739799040495,-1000.0,0.000135,2]
[353364331,1739799040504,-500.58,0.00013523,2]
[353364332,1739799040513,-334.5299271,0.00013559,2]
[353364333,1739799040522,-1570.98505181,0.00013593,2]
[353364334,1739799040531,-499.86873558,0.00013598,2]
[353364335,1739799040540,-162.35220441,0.00013598,2]
[353364336,1739799040550,-504.47,0.00013599,2]
[353364337,1739799040559,-1210.249,0.0001368,2]
[353364338,1739799040568,-71618.64830807,0.0001369,2]
[353364339,1739799040613,-7917.90227764,0.0001369,2]
[353364340,1739799040622,-250.54919196,0.0001369,2]
[353364341,1739799040631,-11635.82028979,0.0001369,2]
[353364359,1739799042741,-2908.46017568,0.0001369,2]
[353364360,1739799042791,-83644.28954237,0.0001369,2]
[353364361,1739799042803,-274.18371666,0.00013697,3]
[353364362,1739799042815,-59977.66947466,0.00013697,3]
[353364399,1739799045765,-1043.28582294,0.00013598,2]
[353364400,1739799045779,-497.9180247,0.00013598,2]
[353364401,1739799045791,-1207.32889969,0.00013697,3]
[353364402,1739799045805,-270.78399774,0.00013697,3]
[353364404,1739799830447,200.30057195,8.777e-05,2]
[353364469,1739800231802,-757.12,0.00010768,2]
[353364470,1739800231812,-508.97,0.00011154,2]
[353364471,1739800231823,-507.94,0.00011154,2]
[353364472,1739800231832,-600.0,0.00011154,2]
[353364473,1739800231842,-500.0,0.00011154,2]
[353364474,1739800231851,-500.0,0.00011154,2]
[353364475,1739800231862,-152.7,0.00011654,2]
[353364476,1739800231872,-548.0,0.000119,5]
[353364477,1739800231882,-150.0,0.00012269,2]
[353364478,1739800231892,-300.0,0.00012523,2]
[353364479,1739800231903,-600.0,0.00012524,2]
[353364480,1739800231915,-500.0,0.00012524,2]
[353364481,1739800231926,-150.0,0.00012557,2]
[353364482,1739800231935,-156.94,0.00012558,2]
[353364483,1739800231944,-250.0,0.00012574,2]
[353364484,1739800231954,-1000.0,0.00012707,2]
[353364485,1739800231964,-986.71,0.00012778,2]
[353364486,1739800231976,-986.71,0.00012778,2]
[353364487,1739800231986,-986.71,0.00012778,2]
[353364488,1739800231995,-986.71,0.00012878,2]
[353364489,1739800232007,-432.56336,0.00013032,2]
[353364490,1739800232018,-757.12,0.00013032,2]
[353364491,1739800232029,-1019.0,0.000133,2]
[353364492,1739800232039,-280.4642216,0.00013424,2]
[353364493,1739800232048,-5082.0,0.00013425,2]
[353364494,1739800232057,-976.58,0.000135,2]
[353364495,1739800232066,-150.0,0.0001355,2]
[353364496,1739800232075,-150.0,0.0001356,2]
[353364497,1739800232085,-150.0,0.00013565,2]
[353364498,1739800232094,-150.0,0.00013565,2]
[353364499,1739800232104,-150.0,0.00013565,2]
[353364500,1739800232115,-150.0,0.00013571,2]
[353364501,1739800232124,-150.0,0.0001358,2]
[353364502,1739800232133,-150.0,0.00013581,2]
[353364503,1739800232142,-150.0,0.00013585,2]
[353364504,1739800232152,-150.0,0.00013585,2]
[353364505,1739800232162,-150.0,0.00013585,2]
[353364506,1739800232172,-150.0,0.00013586,2]
[353364507,1739800232182,-150.0,0.00013588,2]
[353364509,1739800232192,-150.0,0.00013588,2]
[353364511,1739800232201,-150.0,0.00013588,2]
[353364513,1739800232211,-150.0,0.00013589,2]
[353364515,1739800232220,-150.0,0.0001359,2]
[353364517,1739800232230,-150.0,0.0001359,2]
[353364519,1739800232239,-150.0,0.00013591,2]
[353364521,1739800232249,-355.85299999,0.00013593,2]
[353364522,1739800232258,-150.0,0.00013593,2]
[353364523,1739800232268,-150.0,0.00013594,2]
[353364524,1739800232278,-150.0,0.00013595,2]
[353364525,1739800232288,-150.0,0.00013595,2]
[353364527,1739800232297,-160.78932814,0.00013598,2]
[353364529,1739800232306,-1959.23107199,0.00013598,2]
[353364531,1739800232315,-428.45891622,0.00013598,2]
[353364533,1739800232325,-1387.08346284,0.00013598,2]
[353364535,1739800232334,-150.0,0.000136,2]
[353364537,1739800232343,-150.0,0.000136,2]
[353364538,1739800232352,-150.0,0.00013603,2]
[353364540,1739800232361,-150.0,0.00013604,2]
[353364543,1739800232370,-150.0,0.00013604,2]
[353364546,1739800232379,-150.0,0.00013606,2]
[353364550,1739800232389,-150.0,0.00013613,2]
[353364552,1739800232399,-150.0,0.00013614,2]
[353364555,1739800232408,-150.0,0.00013616,2]
[353364558,1739800232417,-150.0,0.0001362,2]
[353364561,1739800232427,-150.0,0.0001362,2]
[353364565,1739800232436,-150.0,0.00013626,2]
[353364567,1739800232445,-150.0,0.00013626,2]
[353364570,1739800232454,-150.0,0.00013626,2]
[353364573,1739800232463,-150.0,0.00013627,2]
[353364576,1739800232472,-500.0,0.0001363,2]
[353364579,1739800232481,-500.0,0.0001363,2]
[353364582,1739800232494,-500.0,0.0001363,2]
[353364585,1739800232503,-500.0,0.0001363,2]
[353364588,1739800232512,-500.0,0.0001363,2]
[353364591,1739800232521,-459.1201,0.0001363,2]
[353364594,1739800232532,-150.0,0.0001363,2]
[353364597,1739800232541,-150.0,0.00013631,2]
[353364600,1739800232550,-150.0,0.00013632,2]
[353364603,1739800232559,-150.0,0.00013636,2]
[353364606,1739800232568,-150.0,0.00013637,2]
[353364609,1739800232578,-1000.0,0.00013645,2]
[353364612,1739800232587,-150.0,0.00013649,2]
[353364615,1739800232596,-150.0,0.00013649,2]
[353364618,1739800232605,-1387.08346284,0.00013653,2]
[353364621,1739800232614,-150.0,0.00013653,2]
[353364624,1739800232624,-150.0,0.00013656,2]
[353364627,1739800232633,-150.0,0.00013657,2]
[353364630,1739800232642,-150.0,0.0001366,2]
[353364633,1739800232651,-1959.23107194,0.00013662,2]
[353364636,1739800232660,-150.0,0.00013669,2]
[353364639,1739800232669,-150.0,0.00013669,2]
[353364642,1739800232679,-150.0,0.00013669,2]
[353364645,1739800232688,-150.0,0.0001367,2]
[353364648,1739800232697,-1000.0,0.00013677,2]
[353364651,1739800232706,-150.0,0.0001368,2]
[353364654,1739800232716,-1000.0,0.00013681,2]
[353364657,1739800232725,-150.0,0.00013683,2]
[353364660,1739800232735,-150.0,0.00013683,2]